fUSD/lending_fUSD_20250304
["ID","MTS","AMOUNT","RATE_DAILY","PERIOD"]
[355395497,1741103438561,-248.95682,0.00012154,2]
[355395498,1741103438572,-1470.23267448,0.00012482,2]
[355395499,1741103438582,-17.17180452,0.00012487,2]
[355395521,1741103440360,-1135.96567531,0.00012487,2]
[355395522,1741103440372,-360.21568969,0.00012487,2]
[355395523,1741103440385,-311.6,0.00012487,2]
[355395524,1741103440548,-2356.78549838,0.00012487,2]
[355395525,1741103440558,-5108.38531346,0.00012587,2]
[355395526,1741103440569,-601.97702826,0.00012587,2]
[355395527,1741103440581,-2177.6,0.00012587,2]
[355395528,1741103440592,-2721.7761327,0.00012587,2]
[355395529,1741103440672,-1043.06459534,0.00012587,2]
[355395530,1741103440685,-407.98088,0.00012587,2]
[355395531,1741103440697,-5509.71119552,0.00012587,2]
[355395532,1741103440708,-4913.10443037,0.00012587,2]
[355395533,1741103440722,-1855.86411356,0.00012587,2]
[355395534,1741103440734,-360.92554205,0.00012587,2]
[355395535,1741103440745,-274.13938207,0.00012587,2]
[355395536,1741103440757,-414.79,0.00012587,2]
[355395537,1741103440768,-20695.5,0.00012587,2]
[355395571,1741103443252,-1470.23267448,0.00012482,2]
[355395572,1741103443262,-81293.76732548,0.00012587,2]
[355395573,1741103443275,-45170.90351274,0.00012587,2]
[355395574,1741103443378,-17155.65647252,0.00012587,2]
[355395582,1741103443538,-419.61,0.00012587,2]
[355395583,1741103443550,-979.18872066,0.00012587,2]
[355395586,1741103444384,-2441.49257263,0.00012587,2]
[355395587,1741103444396,-337.27249606,0.00012587,2]
[355395609,1741103446269,-300.0,0.000124,2]
[355395611,1741103446284,-6150.0,0.00012587,2]
[355395624,1741103447038,-218925.30709417,0.00012587,2]
[355395625,1741103447048,-204.56818645,0.00012587,3]
[355395626,1741103447058,-1638.0,0.00012587,2]
[355395627,1741103447067,-160513.22349231,0.00012587,2]
[355395628,1741103447113,-454.99953191,0.00012587,2]
[355395629,1741103447125,-520.0,0.00012587,2]
[355395631,1741104108877,679.5,9.668e-05,2]
[355395817,1741104632413,-320.29041264,0.00011,2]
[355395832,1741104632869,-229.70958736,0.00011,2]
[355395833,1741104632879,-150.0,0.00011123,2]
[355395834,1741104632889,-276.99,0.00011369,2]
[355395835,1741104632899,-150.0,0.00011372,2]
[355395836,1741104632912,-250.0,0.000114,2]
[355395837,1741104632922,-622.75,0.00011494,2]
[355395838,1741104632932,-1000.0,0.00011585,2]
[355395839,1741104632941,-166.41,0.00011586,2]
[355395840,1741104632951,-679.5,0.00011932,2]
[355395841,1741104632961,-300.0,0.00012,2]
[355395842,1741104632970,-150.0,0.00012,2]
[355395844,1741104632979,-432.34,0.00012,2]
[355395846,1741104632989,-300.0,0.00012,2]
[355395848,1741104632999,-300.0,0.00012021,2]
[355395850,1741104633008,-29999.99,0.00012022,2]
[355395852,1741104633018,-541.0,0.00012023,2]
[355395853,1741104633029,-1593.471,0.00012023,2]
[355395855,1741104633041,-2869.551,0.00012023,2]
[355395856,1741104633052,-150.0,0.00012023,2]
[355395857,1741104633062,-423.9732364,0.0001206,2]
[355395858,1741104633074,-150.0,0.00012078,2]
[355395859,1741104633085,-150.0,0.00012099,2]
[355395860,1741104633097,-880.2,0.000121,2]
[355395861,1741104633107,-150.0,0.000121,2]
[355395862,1741104633118,-150.0,0.000121,2]
[355395864,1741104633128,-550.0,0.000121,2]
[355395865,1741104633139,-150.0,0.000121,2]
[355395866,1741104633149,-550.0,0.000121,2]
[355395867,1741104633166,-550.0,0.000121,2]
[355395868,1741104633176,-300.0,0.00012275,2]
[355395869,1741104633187,-292.14,0.000123,2]
[355395870,1741104633198,-236.081078,0.00012335,2]
[355395871,1741104633208,-150.0,0.000124,2]
[355395872,1741104633218,-1200.3649,0.0001248,2]
[355395873,1741104633228,-1784.3187,0.0001248,2]
[355395874,1741104633238,-165.356,0.00012486,2]
[355395875,1741104633248,-1995.033,0.00012486,2]
[355395877,1741104633258,-893.9036,0.00012487,2]
[355395878,1741104633269,-320.2904,0.00012487,2]
[355395880,1741104633279,-173.46704497,0.00012487,2]
[355395883,1741104633289,-4280.00846333,0.00012487,2]
[355395885,1741104633299,-555.17128761,0.00012487,2]
[355395887,1741104633310,-16507.33486315,0.00012487,2]
[355395889,1741104633320,-2787.8257786,0.00012487,2]
[355395891,1741104633330,-163.43135064,0.00012487,2]
[355395892,1741104633340,-1958.5163,0.00012487,2]
[355395893,1741104633350,-283.9355,0.00012487,2]
[355395894,1741104633360,-865.6705,0.00012487,2]
[355395896,1741104633371,-826.7597,0.00012487,2]
[355395898,1741104633382,-5000.0,0.00012487,2]
[355395900,1741104633392,-150.0,0.000125,2]
[355395902,1741104633406,-150.0,0.000125,2]
[355395904,1741104633416,-1749.0,0.000125,2]
[355395906,1741104633427,-506.4680422,0.00012573,2]
[355395908,1741104633437,-160.19981071,0.00012573,2]
[355395910,1741104633447,-501.65934948,0.00012573,2]
[355395912,1741104633457,-500.0,0.00012573,2]
[355395914,1741104633467,-363.38034446,0.00012573,2]
[355395916,1741104633478,-210.04780103,0.00012573,2]
[355395918,1741104633488,-1000.0,0.00012586,2]
[355395920,1741104633498,-1000.0,0.00012586,2]
[355395922,1741104633508,-993.8538,0.00012586,2]
[355395923,1741104633518,-500.0,0.00012586,2]
[355395924,1741104633527,-500.0,0.00012586,2]
[355395925,1741104633537,-531.58800063,0.00012586,2]
[355395926,1741104633694,-1471.0,0.00012587,2]
[355395927,1741104633739,-21353.53615724,0.00012587,2]
[355395928,1741104633752,-2946.01268125,0.00012587,2]
[355395929,1741104633765,-8619.4511625,0.00012587,2]
[355395930,1741104633775,-1025.32268728,0.00012587,2]
[355395931,1741104633785,-4419.24512422,0.00012587,2]
[355395939,1741104638383,-1113.0,0.00012023,2]
[355395940,1741104638394,-1432.50539138,0.00012587,2]
[355395941,1741104638476,-910.04997864,0.00012587,2]
[355395942,1741104638559,-4912.90774486,0.00012587,2]
[355396075,1741104640344,-1456.05243646,0.00012587,2]
[355396077,1741104640356,-11146.38275079,0.00012587,2]
[355396079,1741104640368,-615.4,0.00012587,2]
[355396099,1741104640558,-4389.80000004,0.00012587,2]
[355396101,1741104640571,-8384.07962742,0.00012587,2]
[355396104,1741104640590,-2088.168,0.00012587,2]
[355396106,1741104640601,-1381.73076182,0.00012587,2]
[355396113,1741104640672,-496.115,0.00012587,2]
[355396115,1741104640685,-297.705,0.00012587,2]
[355396118,1741104640698,-5301.70077546,0.00012587,2]
[355396120,1741104640710,-300.75060262,0.00012587,2]
[355396400,1741104643530,-359.41929164,0.00012587,2]
[355396529,1741104644673,-528.60223052,0.00012587,2]
[355396532,1741104644686,-38394.6758928,0.00012587,2]
[355396534,1741104644705,-9518.9746182,0.00012587,2]
[355396537,1741104644717,-4430.0000001,0.00012587,2]
[355396541,1741104644759,-4328.83602794,0.00012587,2]
[355396544,1741104644770,-284.70963967,0.00012587,2]
[355396681,1741104646358,-988.08984014,0.00012587,2]
[355396694,1741104646514,-93631.53764001,0.00012587,2]
[355396697,1741104646569,-12402.35375279,0.00012587,2]
[355396699,1741104646582,-322.78774433,0.00012587,2]
[355396701,1741104646595,-3899.99999107,0.00012587,2]
[355396760,1741104647382,-253.84999996,0.00012587,2]
[355397994,1741105163034,611.55,9.352e-05,2]
[355399145,1741105749667,-550.0,0.00011,2]
[355399146,1741105749690,-1000.0,0.0001122,2]
[355399147,1741105749713,-822.88,0.00011272,2]
[355399148,1741105749737,-247.12,0.00011344,2]
[355399149,1741105749760,-5190.37522557,0.0001137,2]
[355399150,1741105749782,-150.0,0.0001137,2]
[355399151,1741105749806,-247.12,0.00011397,2]
[355399152,1741105749831,-247.12,0.00011451,2]
[355399153,1741105749853,-150.0,0.00011451,2]
[355399154,1741105749877,-247.12,0.00011505,2]
[355399155,1741105749900,-247.12,0.00011558,2]
[355399156,1741105749924,-247.12,0.00011612,2]
[355399157,1741105749945,-611.55,0.00011616,2]
[355399158,1741105749966,-42.47477443,0.00011616,2]
[355399159,1741105752255,-372.93522557,0.00011616,2]
[355399160,1741105752280,-4385.02,0.00011616,2]
[355399161,1741105752306,-247.12,0.00011666,2]
[355399162,1741105752334,-1852.42,0.00011708,2]
[355399163,1741105752359,-247.12,0.0001172,2]
[355399164,1741105752385,-247.12,0.00011773,2]
[355399165,1741105752410,-247.12,0.00011827,2]
[355399166,1741105752434,-247.12,0.00011881,2]
[355399167,1741105752457,-247.12,0.00011935,2]
[355399168,1741105752480,-247.12,0.00011988,2]
[355399169,1741105752503,-400.0,0.00012,4]
[355399170,1741105752525,-1234.81,0.00012041,2]
[355399171,1741105752548,-24.97477443,0.00012042,2]
[355399172,1741105752808,-222.14522557,0.00012042,2]
[355399173,1741105752832,-150.99,0.00012087,2]
[355399174,1741105752856,-247.12,0.00012096,2]
[355399175,1741105752879,-900.0,0.000121,4]
[355399176,1741105752903,-247.12,0.00012149,2]
[355399177,1741105752925,-1300.0,0.000122,4]
[355399178,1741105752948,-247.12,0.00012203,2]
[355399179,1741105752971,-433.40598907,0.00012251,2]
[355399180,1741105752995,-247.12,0.00012257,2]
[355399181,1741105753016,-150.0,0.00012257,2]
[355399182,1741105753040,-1800.0,0.000123,4]
[355399183,1741105753067,-247.12,0.00012311,2]
[355399184,1741105753093,-1280.335,0.00012314,2]
[355399185,1741105753115,-2033.981,0.00012314,2]
[355399186,1741105753139,-150.0,0.00012314,2]
[355399187,1741105753163,-343.54278536,0.00012314,2]
[355399188,1741105753395,-1114.45721464,0.00012314,2]
[355399189,1741105753420,-640.0,0.00012314,2]
[355399190,1741105753443,-570.0,0.00012314,2]
[355399191,1741105753469,-787.0,0.00012314,2]
[355399192,1741105753491,-541.0,0.00012314,2]
[355399193,1741105753515,-150.0,0.00012314,2]
[355399194,1741105753537,-1113.0,0.00012314,2]
[355399195,1741105753563,-527.4906408,0.00012335,2]
[355399196,1741105753596,-247.12,0.00012364,2]
[355399197,1741105753622,-2300.0,0.000124,4]
[355399198,1741105753648,-150.0,0.00012478,2]
[355399199,1741105753672,-884.3211,0.00012487,2]
[355399200,1741105753696,-368.101,0.00012487,2]
[355399201,1741105753720,-600.63435647,0.00012487,2]
[355399202,1741105753744,-6.87568809,0.00012487,2]
[355399203,1741105754260,-3950.63161191,0.00012487,2]
[355399204,1741105754466,-400.0,0.000125,4]
[355399205,1741105754490,-600.63435641,0.00012533,2]
[355399206,1741105754512,-165.357,0.00012533,2]
[355399207,1741105754535,-1596.027,0.00012533,2]
[355399208,1741105754558,-500.0,0.00012573,2]
[355399209,1741105754586,-600.63435641,0.00012579,2]
[355399210,1741105754608,-258.13435483,0.00012586,2]
[355399211,1741105754632,-1000.0,0.00012586,2]
[355399212,1741105754658,-928.58132044,0.00012587,2]
[355399213,1741105754692,-10000.0,0.00012587,2]
[355399214,1741105754725,-10000.0,0.00012587,2]
[355399215,1741105755027,-10000.0,0.00012587,2]
[355399216,1741105756026,-10000.0,0.00012587,2]
[355399217,1741105756057,-10000.0,0.00012587,2]
[355399218,1741105756100,-10000.0,0.00012587,2]
[355399219,1741105756241,-10000.0,0.00012587,2]
[355399220,1741105756677,-10000.0,0.00012587,2]
[355399221,1741105757120,-10000.0,0.00012587,2]
[355399222,1741105757582,-10000.0,0.00012587,2]
[355399223,1741105758153,-10000.0,0.00012587,2]
[355399224,1741105758473,-5269.13122409,0.00012587,2]
[355399225,1741105758501,-4730.86877591,0.00012587,2]
[355399226,1741105758882,-10000.0,0.00012587,2]
[355399227,1741105759361,-10000.0,0.00012587,2]
[355399228,1741105759626,-10000.0,0.00012587,2]
[355399229,1741105760010,-10000.0,0.00012587,2]
[355399230,1741105760293,-10000.0,0.00012587,2]
[355399231,1741105760734,-10000.0,0.00012587,2]
[355399232,1741105761097,-10000.0,0.00012587,2]
[355399233,1741105761497,-10000.0,0.00012587,2]
[355399234,1741105761953,-10000.0,0.00012587,2]
[355399235,1741105762388,-10000.0,0.00012587,2]
[355399236,1741105762870,-10000.0,0.00012587,2]
[355399237,1741105763347,-10000.0,0.00012587,2]
[355399238,1741105763654,-10000.0,0.00012587,2]
[355399239,1741105764041,-10000.0,0.00012587,2]
[355399240,1741105764517,-10000.0,0.00012587,2]
[355399241,1741105764991,-10000.0,0.00012587,2]
[355399242,1741105765462,-10000.0,0.00012587,2]
[355399243,1741105766697,-10000.0,0.00012587,2]
[355399244,1741105766866,-10000.0,0.00012587,2]
[355399245,1741105766912,-10000.0,0.00012587,2]
[355399246,1741105767055,-10000.0,0.00012587,2]
[355399247,1741105767539,-10000.0,0.00012587,2]
[355399248,1741105767786,-10000.0,0.00012587,2]
[355399249,1741105768185,-10000.0,0.00012587,2]
[355399250,1741105768747,-10000.0,0.00012587,2]
[355399251,1741105769117,-10000.0,0.00012587,2]
[355399252,1741105769407,-10000.0,0.00012587,2]
[355399253,1741105769865,-10000.0,0.00012587,2]
[355399254,1741105770300,-10000.0,0.00012587,2]
[355399255,1741105770777,-10000.0,0.00012587,2]
[355399256,1741105771204,-10000.0,0.00012587,2]
[355399257,1741105771534,-10000.0,0.00012587,2]
[355399258,1741105771853,-10000.0,0.00012587,2]
[355399259,1741105772152,-10000.0,0.00012587,2]
[355399260,1741105772724,-10000.0,0.00012587,2]
[355399261,1741105773186,-10000.0,0.00012587,2]
[355399262,1741105773671,-10000.0,0.00012587,2]
[355399263,1741105774130,-10000.0,0.00012587,2]
[355399264,1741105774607,-10000.0,0.00012587,2]
[355399265,1741105775139,-10000.0,0.00012587,2]
[355399266,1741105775638,-10000.0,0.00012587,2]
[355399267,1741105776133,-10000.0,0.00012587,2]
[355399268,1741105777195,-10000.0,0.00012587,2]
[355399269,1741105777271,-10000.0,0.00012587,2]
[355399270,1741105777541,-10000.0,0.00012587,2]
[355399271,1741105778075,-2070.11,0.00011277,2]
[355399272,1741105778105,-7929.89,0.00012587,2]
[355399273,1741105778629,-10000.0,0.00012587,2]
[355399274,1741105779072,-10000.0,0.00012587,2]
[355399275,1741105779506,-10000.0,0.00012587,2]
[355399276,1741105780037,-4034.72858649,0.00012587,2]
[355399277,1741105780064,-150.0,0.00012587,2]
[355399278,1741105780087,-1637.47236769,0.00012587,2]
[355399279,1741105780117,-150.0,0.00012587,2]
[355399280,1741105780143,-150.0,0.00012587,2]
[355399281,1741105780167,-150.0,0.00012587,2]
[355399282,1741105780190,-150.0,0.00012587,2]
[355399283,1741105780213,-150.0,0.00012587,2]
[355399284,1741105780234,-501.01,0.00012587,2]
[355399285,1741105780258,-500.0,0.00012587,2]
[355399286,1741105780282,-1000.0,0.00012587,2]
[355399287,1741105780304,-151.0,0.00012587,2]
[355399288,1741105780326,-151.0,0.00012587,2]
[355399289,1741105780349,-151.0,0.00012587,2]
[355399290,1741105780370,-151.0,0.00012587,2]
[355399291,1741105780392,-151.0,0.00012587,2]
[355399292,1741105780414,-151.0,0.00012587,2]
[355399293,1741105780437,-158.606008,0.00012587,2]
[355399294,1741105780460,-151.635151,0.00012587,2]
[355399295,1741105780482,-158.606008,0.00012587,2]
[355399296,1741105780506,-51.94187882,0.00012587,2]
[355399297,1741105780559,-99.05812118,0.00012587,2]
[355399298,1741105780583,-151.386986,0.00012587,2]
[355399299,1741105780614,-151.708553,0.00012587,2]
[355399300,1741105780638,-151.0,0.00012587,2]
[355399301,1741105780665,-187.442813,0.00012587,2]
[355399302,1741105780688,-151.0,0.00012587,2]
[355399303,1741105780711,-151.0,0.00012587,2]
[355399304,1741105780734,-151.0,0.00012587,2]
[355399305,1741105780758,-151.0,0.00012587,2]
[355399306,1741105780782,-151.0,0.00012587,2]
[355399307,1741105780804,-151.0,0.00012587,2]
[355399308,1741105780829,-151.0,0.00012587,2]
[355399309,1741105780856,-151.0,0.00012587,2]
[355399310,1741105780881,-151.0,0.00012587,2]
[355399311,1741105780904,-151.0,0.00012587,2]
[355399312,1741105780927,-305.83434,0.00012587,2]
[355399313,1741105780950,-305.83434,0.00012587,2]
[355399314,1741105780973,-151.0,0.00012587,2]
[355399315,1741105780995,-151.0,0.00012587,2]
[355399316,1741105781019,-151.0,0.00012587,2]
[355399317,1741105781041,-151.0,0.00012587,2]
[355399318,1741105781065,-151.0,0.00012587,2]
[355399319,1741105781089,-151.0,0.00012587,2]
[355399320,1741105781118,-151.0,0.00012587,2]
[355399321,1741105781141,-151.0,0.00012587,2]
[355399322,1741105781163,-151.0,0.00012587,2]
[355399323,1741105781185,-216.855176,0.00012587,2]
[355399324,1741105781208,-151.0,0.00012587,2]
[355399325,1741105781230,-500.0,0.00012587,2]
[355399326,1741105781252,-500.0,0.00012587,2]
[355399327,1741105781274,-500.0,0.00012587,2]
[355399328,1741105781296,-500.0,0.00012587,2]
[355399329,1741105781318,-500.0,0.00012587,2]
[355399330,1741105781339,-500.0,0.00012587,2]
[355399331,1741105781365,-559.0,0.00012587,2]
[355399332,1741105781386,-1073.040503,0.00012587,2]
[355399333,1741105781410,-778.83916782,0.00012587,2]
[355399334,1741105781580,-294.20133518,0.00012587,2]
[355399335,1741105781607,-1280.616214,0.00012587,2]
[355399336,1741105781630,-453.274167,0.00012587,2]
[355399337,1741105781653,-1280.616214,0.00012587,2]
[355399338,1741105781675,-169.725641,0.00012587,2]
[355399339,1741105781698,-453.274167,0.00012587,2]
[355399340,1741105781723,-169.725641,0.00012587,2]
[355399341,1741105781960,-443.251764,0.00012587,2]
[355399342,1741105781985,-206.956566,0.00012587,2]
[355399343,1741105782009,-443.251764,0.00012587,2]
[355399344,1741105782034,-206.956566,0.00012587,2]
[355399345,1741105782061,-225.414588,0.00012587,2]
[355399346,1741105782084,-225.414588,0.00012587,2]
[355399347,1741105782114,-200.0,0.00012587,2]
[355399348,1741105782139,-500.0,0.00012587,2]
[355399349,1741105782163,-500.0,0.00012587,2]
[355399350,1741105782188,-500.0,0.00012587,2]
[355399351,1741105782216,-500.0,0.00012587,2]
[355399352,1741105782240,-500.0,0.00012587,2]
[355399353,1741105782264,-500.0,0.00012587,2]
[355399354,1741105782287,-500.0,0.00012587,2]
[355399355,1741105782310,-447.32078482,0.00012587,2]
[355399356,1741105782402,-52.67921518,0.00012587,2]
[355399357,1741105782427,-500.0,0.00012587,2]
[355399358,1741105782452,-500.0,0.00012587,2]
[355399359,1741105782477,-500.0,0.00012587,2]
[355399360,1741105782501,-500.0,0.00012587,2]
[355399361,1741105782523,-500.0,0.00012587,2]
[355399362,1741105782547,-500.0,0.00012587,2]
[355399363,1741105782570,-802.0,0.00012587,2]
[355399364,1741105782593,-500.0,0.00012587,2]
[355399365,1741105782625,-500.0,0.00012587,2]
[355399366,1741105782649,-500.0,0.00012587,2]
[355399367,1741105782672,-500.0,0.00012587,2]
[355399368,1741105782696,-500.0,0.00012587,2]
[355399369,1741105782718,-500.0,0.00012587,2]
[355399370,1741105782741,-500.0,0.00012587,2]
[355399371,1741105782765,-500.0,0.00012587,2]
[355399372,1741105782787,-500.0,0.00012587,2]
[355399373,1741105782811,-500.0,0.00012587,2]
[355399374,1741105782834,-500.0,0.00012587,2]
[355399375,1741105782860,-500.0,0.00012587,2]
[355399376,1741105782883,-145.32078482,0.00012587,2]
[355399377,1741105782918,-354.67921518,0.00012587,2]
[355399378,1741105782941,-500.0,0.00012587,2]
[355399379,1741105782964,-500.0,0.00012587,2]
[355399380,1741105782990,-500.0,0.00012587,2]
[355399381,1741105783015,-500.0,0.00012587,2]
[355399382,1741105783038,-500.0,0.00012587,2]
[355399383,1741105783065,-500.0,0.00012587,2]
[355399384,1741105783091,-650.0,0.00012587,2]
[355399385,1741105783125,-4000.0,0.00012587,2]
[355399386,1741105783151,-154.0,0.00012587,3]
[355399387,1741105783177,-1000.0,0.00012587,2]
[355399388,1741105783201,-841.32078482,0.00012587,2]
[355399389,1741105783431,-158.67921518,0.00012587,2]
[355399390,1741105783454,-1000.0,0.00012587,2]
[355399391,1741105783477,-1000.0,0.00012587,2]
[355399392,1741105783501,-1000.0,0.00012587,2]
[355399393,1741105783524,-1000.0,0.00012587,2]
[355399394,1741105783546,-1000.0,0.00012587,2]
[355399395,1741105783568,-1000.0,0.00012587,2]
[355399396,1741105783593,-1000.0,0.00012587,2]
[355399397,1741105783618,-1000.0,0.00012587,2]
[355399398,1741105783640,-1000.0,0.00012587,2]
[355399399,1741105783670,-841.32078482,0.00012587,2]
[355399400,1741105784032,-158.67921518,0.00012587,2]
[355399401,1741105784057,-749.0,0.00012587,2]
[355399402,1741105784081,-300.12081849,0.00012589,2]
[355399403,1741105784301,-8786.8924224,0.00012591,2]
[355399404,1741105784324,-5.30754393,0.000126,2]
[355399405,1741105784362,-145.69245607,0.000126,2]
[355399406,1741105784386,-151.0,0.000126,2]
[355399407,1741105784409,-151.0,0.000126,2]
[355399408,1741105784432,-151.0,0.000126,2]
[355399409,1741105784455,-400.0,0.000126,4]
[355399410,1741105784476,-9001.30754393,0.00012603,2]
[355399411,1741105784510,-2585.54245607,0.00012603,2]
[355399412,1741105784532,-150.0,0.00012603,2]
[355399413,1741105784554,-150.0,0.00012603,2]
[355399414,1741105784575,-150.0,0.00012603,2]
[355399415,1741105784601,-150.0,0.00012603,2]
[355399416,1741105784624,-150.0,0.00012603,2]
[355399417,1741105784646,-150.0,0.00012603,2]
[355399418,1741105784667,-150.0,0.00012603,2]
[355399419,1741105784690,-158.44,0.0001261,2]
[355399420,1741105784711,-152.04,0.00012614,2]
[355399421,1741105784734,-440.31,0.00012614,2]
[355399422,1741105784755,-150.0,0.00012614,2]
[355399423,1741105784778,-440.31,0.00012614,2]
[355399424,1741105784801,-1000.0,0.00012622,2]
[355399425,1741105784824,-600.63435641,0.00012625,2]
[355399426,1741105784851,-600.63435641,0.00012671,2]
[355399427,1741105784875,-158.44,0.0001268,2]
[355399428,1741105784899,-187.75,0.000127,2]
[355399429,1741105784923,-368.0,0.000127,2]
[355399430,1741105784947,-749.0,0.000127,2]
[355399431,1741105784970,-232.0,0.000127,2]
[355399432,1741105784996,-400.0,0.000127,4]
[355399433,1741105785020,-726.89883111,0.000127,2]
[355399434,1741105788510,-255.10116889,0.000127,2]
[355399435,1741105788535,-4000.0,0.000127,2]
[355399436,1741105788562,-185.39,0.00012716,2]
[355399437,1741105788588,-600.63435641,0.00012716,2]
[355399438,1741105788619,-150.0,0.00012728,2]
[355399439,1741105788645,-150.0,0.00012737,2]
[355399440,1741105788671,-150.0,0.00012742,2]
[355399441,1741105788696,-150.0,0.00012745,2]
[355399442,1741105788720,-150.0,0.00012747,2]
[355399443,1741105788745,-158.44,0.0001275,2]
[355399444,1741105788770,-150.0,0.00012752,2]
[355399445,1741105788796,-151.0,0.00012762,2]
[355399446,1741105788823,-151.0,0.00012762,2]
[355399447,1741105788859,-600.63435641,0.00012762,2]
[355399448,1741105788888,-150.0,0.00012767,2]
[355399449,1741105788917,-150.0,0.00012767,2]
[355399450,1741105788945,-150.0,0.00012781,2]
[355399451,1741105788972,-276.99,0.0001279,2]
[355399452,1741105789000,-150.0,0.00012791,2]
[355399453,1741105789028,-150.0,0.00012793,2]
[355399454,1741105789058,-150.0,0.00012797,2]
[355399455,1741105789085,-1820.81011829,0.000128,2]
[355399456,1741105789160,-61.58988171,0.000128,2]
[355399457,1741105789187,-5000.0,0.000128,2]
[355399458,1741105789213,-400.0,0.000128,4]
[355399459,1741105789241,-151.0,0.00012806,2]
[355399460,1741105789266,-151.0,0.00012806,2]
[355399461,1741105789292,-151.0,0.00012806,2]
[355399462,1741105789319,-150.0,0.00012807,2]
[355399463,1741105789344,-600.63435641,0.00012808,2]
[355399464,1741105789377,-150.0,0.00012819,2]
[355399465,1741105789404,-150.0,0.00012828,2]
[355399466,1741105789431,-150.0,0.00012839,2]
[355399467,1741105789458,-150.0,0.00012848,2]
[355399468,1741105789483,-150.0,0.00012852,2]
[355399469,1741105789509,-150.0,0.00012853,2]
[355399470,1741105789535,-600.63435641,0.00012854,2]
[355399471,1741105789559,-1834.14140547,0.00012856,2]
[355399472,1741105790006,-6665.85859453,0.00012856,2]
[355399473,1741105790035,-150.0,0.00012857,2]
[355399474,1741105790061,-3184.14140547,0.00012865,2]
[355399475,1741105790090,-5315.85859453,0.00012865,2]
[355399476,1741105790119,-151.0,0.00012865,2]
[355399477,1741105790145,-151.0,0.00012865,2]
[355399478,1741105790172,-151.0,0.00012865,2]
[355399479,1741105790198,-151.0,0.00012865,2]
[355399480,1741105790222,-151.0,0.00012865,2]
[355399481,1741105790246,-151.0,0.00012865,2]
[355399482,1741105790270,-151.0,0.00012865,2]
[355399483,1741105790292,-151.0,0.00012865,2]
[355399484,1741105790318,-150.0,0.00012873,2]
[355399485,1741105790341,-3326.14140547,0.00012874,2]
[355399486,1741105790379,-5173.85859453,0.00012874,2]
[355399487,1741105790402,-205.437874,0.00012874,2]
[355399488,1741105790426,-158.606008,0.00012874,2]
[355399489,1741105790450,-158.606008,0.00012874,2]
[355399490,1741105790472,-151.0,0.00012874,2]
[355399491,1741105790495,-151.0,0.00012874,2]
[355399492,1741105790519,-151.0,0.00012874,2]
[355399493,1741105790542,-151.0,0.00012874,2]
[355399494,1741105790564,-151.0,0.00012874,2]
[355399495,1741105790860,-151.0,0.00012874,2]
[355399496,1741105790885,-305.83434,0.00012874,2]
[355399497,1741105790908,-205.236054,0.00012874,2]
[355399498,1741105790931,-151.0,0.00012874,2]
[355399499,1741105790955,-151.0,0.00012874,2]
[355399500,1741105790978,-151.0,0.00012874,2]
[355399501,1741105791001,-151.0,0.00012874,2]
[355399502,1741105791023,-151.0,0.00012874,2]
[355399503,1741105791046,-151.0,0.00012874,2]
[355399504,1741105791069,-1073.040503,0.00012874,2]
[355399505,1741105791095,-907.38061847,0.00012874,2]
[355399506,1741105791133,-165.65988453,0.00012874,2]